bitfinex/quotes_SOLUSD_20240620
["timestamp","ask_amount","ask_price","bid_price","bid_amount"]
[1718870427980,0.34,137.31,137.25,21.8505]
[1718870428187,0.17,137.3,137.25,21.8505]
[1718870428412,0.34,137.3,137.25,21.8505]
[1718870428707,0.34,137.29,137.25,15.6358]
[1718870428905,0.17,137.28,137.25,15.6358]
[1718870430506,0.34,137.29,137.25,15.6358]
[1718870430704,20.0,137.32,137.25,15.6358]
[1718870430903,20.0,137.32,137.26,0.17]
[1718870431207,20.0,137.35,137.25,15.6358]
[1718870431712,20.0,137.35,137.26,0.17]
[1718870431908,20.0,137.35,137.25,15.6358]
[1718870433587,0.51,137.34,137.25,15.6358]
[1718870435988,29.66976003,137.41,137.28,0.17]
[1718870436188,29.66976003,137.41,137.29,16.296]
[1718870436189,2.38844582,137.39,137.29,16.296]
[1718870436500,2.38844582,137.39,137.32,0.17]
[1718870436807,20.0,137.43,137.33,16.603]
[1718870436988,20.0,137.43,137.34,0.17]
[1718870437189,20.0,137.43,137.33,16.603]
[1718870437708,22.0497,137.44,137.33,16.603]
[1718870437903,24.43814582,137.44,137.33,16.603]
[1718870438808,29.98061747,137.44,137.33,16.603]
[1718870439006,20.0,137.43,137.34,0.17]
[1718870439302,20.0,137.43,137.33,16.603]
[1718870439500,0.17,137.42,137.33,16.603]
[1718870439815,0.51,137.42,137.33,16.603]
[1718870440406,20.0,137.43,137.34,0.17]
[1718870440811,2.38844582,137.44,137.34,0.17]
[1718870440812,2.38844582,137.44,137.38,0.17]
[1718870441504,20.0,137.48,137.38,0.17]
[1718870442008,424.5158,137.52,137.38,0.17]
[1718870442202,2.38844582,137.49,137.38,0.17]
[1718870443799,0.51,137.48,137.38,0.17]
[1718870445088,0.51,137.48,137.39,6.5247]
[1718870445489,2.38844582,137.49,137.4,15.8054]
[1718870445794,2.38844582,137.49,137.41,6.5247]
[1718870445985,2.38844582,137.49,137.42,0.17]
[1718870446188,2.38844582,137.49,137.44,0.17]
[1718870446387,20.0,137.53,137.44,0.17]
[1718870446602,20.0,137.55,137.44,0.17]
[1718870447199,22.38844582,137.55,137.44,0.17]
[1718870447993,22.38844582,137.55,137.45,22.3967]
[1718870448197,2.38844582,137.55,137.46,0.17]
[1718870449104,2.38844582,137.55,137.45,22.3967]
[1718870449717,0.68,137.54,137.45,22.3967]
[1718870450916,20.68,137.54,137.45,22.3967]
[1718870451416,21.42,137.52,137.45,22.3967]
[1718870451603,20.51,137.51,137.45,22.3967]
[1718870451806,0.17,137.5,137.45,22.3967]
[1718870452128,0.17,137.5,137.45,16.2809]
[1718870452424,0.17,137.5,137.42,6.2504]
[1718870452720,0.17,137.48,137.42,6.2504]
[1718870453018,0.68,137.48,137.42,6.2504]
[1718870454110,20.68,137.48,137.42,6.2504]
[1718870455322,20.68,137.48,137.41,16.5033]
[1718870455825,0.17,137.45,137.41,16.5033]
[1718870456007,20.51,137.45,137.41,16.5033]
[1718870456207,20.68,137.45,137.41,16.5033]
[1718870456604,20.51,137.45,137.41,16.5033]
[1718870456898,20.0,137.44,137.41,16.5033]
[1718870457112,0.51,137.43,137.41,16.5033]
[1718870457317,0.34,137.43,137.41,16.5033]
[1718870457521,0.17,137.42,137.41,16.5033]
[1718870460926,0.34,137.44,137.41,16.5033]
[1718870461130,0.17,137.43,137.41,16.5033]
[1718870463328,2.38569637,137.47,137.41,16.5033]
[1718870464710,0.17,137.5,137.41,16.5033]
[1718870465434,20.0,137.51,137.41,16.5033]
[1718870465611,2.55293337,137.5,137.41,16.5033]
[1718870466121,0.51,137.49,137.41,16.5033]
[1718870468004,2.38293337,137.5,137.41,16.5033]
[1718870468205,2.38293337,137.5,137.44,16.501]
[1718870468409,2.38293337,137.5,137.45,0.17]
[1718870468620,2.38293337,137.5,137.44,16.501]
[1718870469024,2.38293337,137.5,137.45,0.17]
[1718870469226,2.38293337,137.5,137.46,22.6919]
[1718870469809,2.38293337,137.5,137.47,0.17]
[1718870470311,21.42,137.59,137.47,0.17]
[1718870470531,26.76984173,137.59,137.47,0.17]
[1718870470730,20.0,137.58,137.47,0.17]
[1718870472530,0.34,137.57,137.47,0.17]
[1718870472720,0.17,137.56,137.47,0.17]
[1718870473036,0.17,137.56,137.46,22.6919]
[1718870473235,0.34,137.56,137.46,22.6919]
[1718870473419,0.17,137.56,137.47,0.17]
[1718870473620,0.17,137.57,137.47,0.17]
[1718870473839,0.34,137.57,137.46,22.6919]
[1718870474029,0.17,137.55,137.46,22.6919]
[1718870474236,20.34,137.55,137.46,22.6919]
[1718870474939,0.34,137.54,137.46,22.6919]
[1718870475124,0.17,137.53,137.46,22.6919]
[1718870475438,20.17,137.55,137.46,22.6919]
[1718870476242,0.17,137.55,137.46,22.6919]
[1718870476418,0.17,137.52,137.46,22.6919]
[1718870476623,0.34,137.52,137.46,22.6919]
[1718870477653,0.17,137.51,137.46,22.6919]
[1718870477822,0.34,137.51,137.46,22.6919]
[1718870478157,0.17,137.5,137.46,22.6919]
[1718870478327,0.34,137.51,137.46,22.6919]
[1718870478530,0.17,137.51,137.46,22.6919]
[1718870478917,0.34,137.51,137.46,22.6919]
[1718870479123,20.0,137.55,137.47,0.17]
[1718870479641,20.0,137.55,137.46,22.6919]
[1718870480529,0.34,137.54,137.46,22.6919]
[1718870480726,0.34,137.53,137.46,22.6919]
[1718870481044,0.34,137.52,137.46,22.6919]
[1718870481367,0.17,137.51,137.46,22.6919]
[1718870487264,0.34,137.51,137.46,16.6264]
[1718870487447,0.51,137.5,137.46,16.6264]
[1718870487649,0.51,137.49,137.46,16.6264]
[1718870487954,0.17,137.48,137.46,16.6264]
[1718870488161,0.34,137.51,137.46,16.6264]
[1718870488461,0.34,137.5,137.46,16.6264]
[1718870488639,0.17,137.49,137.46,16.6264]
[1718870490644,0.17,137.49,137.43,6.0899]
[1718870490843,0.34,137.49,137.43,6.0899]
[1718870491054,0.34,137.48,137.43,6.0899]
[1718870491266,0.17,137.47,137.43,6.0899]
[1718870492363,20.0,137.52,137.43,6.0899]
[1718870493749,0.17,137.51,137.43,6.0899]
[1718870494052,0.51,137.51,137.43,6.0899]
[1718870499851,0.17,137.5,137.43,6.0899]
[1718870500057,0.34,137.5,137.43,6.0899]
[1718870500249,0.17,137.49,137.43,6.0899]
[1718870500462,0.51,137.49,137.43,6.0899]
[1718870502653,0.17,137.48,137.43,6.0899]
[1718870502859,0.51,137.48,137.43,6.0899]
[1718870503185,0.17,137.47,137.43,6.0899]
[1718870503355,20.51,137.47,137.43,6.0899]
[1718870503555,0.51,137.47,137.43,6.0899]
[1718870504374,33.12242264,137.52,137.43,6.0899]
[1718870504553,20.0,137.52,137.43,6.0899]
[1718870505730,0.68,137.51,137.43,6.0899]
[1718870510363,41.42,137.52,137.44,16.1151]
[1718870510558,54.54193267,137.52,137.44,16.1151]
[1718870511660,0.68,137.51,137.44,16.1151]
[1718870511883,21.42,137.49,137.4,16.525]
[1718870512059,20.68,137.48,137.4,16.525]
[1718870515966,20.0,137.48,137.4,16.525]
[1718870516286,20.0,137.49,137.4,16.525]
[1718870516465,33.12504015,137.5,137.4,16.525]
[1718870517292,0.68,137.49,137.4,16.525]
[1718870517672,0.17,137.47,137.4,16.525]
[1718870517976,20.68,137.47,137.4,16.525]
[1718870519091,0.17,137.44,137.4,16.525]
[1718870519382,20.34,137.44,137.4,16.525]
[1718870519587,0.17,137.43,137.4,16.525]
[1718870519788,0.17,137.42,137.4,16.525]
[1718870520087,21.93,137.42,137.33,16.2029]
[1718870520487,0.17,137.4,137.33,16.2029]
[1718870520714,0.17,137.4,137.25,41.76]
[1718870520715,21.42,137.39,137.26,22.8282]
[1718870520993,0.17,137.35,137.26,22.8282]
[1718870521366,20.68,137.35,137.26,22.8282]
[1718870521568,21.42,137.33,137.26,22.8282]
[1718870521766,20.68,137.32,137.26,22.8282]
[1718870522680,20.68,137.32,137.26,16.2029]
[1718870522883,20.51,137.32,137.26,16.2029]
[1718870523195,0.51,137.32,137.26,16.2029]
[1718870523365,0.17,137.31,137.26,16.2029]
[1718870523984,0.34,137.32,137.26,16.2029]
[1718870525496,0.17,137.31,137.26,16.2029]
[1718870529394,0.34,137.31,137.22,21.5551]
[1718870529690,0.17,137.29,137.22,21.5551]
[1718870530071,0.34,137.29,137.22,21.5551]
[1718870530275,0.17,137.27,137.22,21.5551]
[1718870530474,0.34,137.27,137.22,21.5551]
[1718870530692,0.34,137.26,137.22,21.5551]
[1718870530898,0.17,137.25,137.22,21.5551]
[1718870532482,0.34,137.25,137.22,15.3558]
[1718870532687,0.17,137.24,137.22,15.3558]
[1718870532883,0.34,137.24,137.19,22.5205]
[1718870533093,0.17,137.23,137.19,22.5205]
[1718870534283,20.0,137.32,137.19,22.5205]
[1718870534800,28.80269856,137.33,137.19,22.5205]
[1718870535717,0.17,137.32,137.19,22.5205]
[1718870535888,20.17,137.32,137.2,20.0]
[1718870536196,20.0,137.32,137.23,6.466]
[1718870536399,20.0,137.36,137.24,20.0]
[1718870537576,0.68,137.35,137.24,20.0]
[1718870537780,0.68,137.35,137.23,6.466]
[1718870539810,0.68,137.35,137.24,20.0]
[1718870539996,20.0,137.36,137.24,20.0]
[1718870540502,20.0,137.36,137.26,0.17]
[1718870540708,20.0,137.37,137.27,6.1798]
[1718870540923,20.0,137.4,137.27,6.1798]
[1718870541784,0.17,137.39,137.27,6.1798]
[1718870541991,0.34,137.39,137.27,6.1798]
[1718870542196,0.68,137.39,137.27,6.1798]
[1718870542815,25.5888451,137.4,137.27,6.1798]
[1718870543105,20.0,137.4,137.29,22.6822]
[1718870543309,20.0,137.43,137.32,6.4168]
[1718870543518,20.0,137.43,137.33,20.0]
[1718870543698,20.0,137.48,137.33,20.0]
[1718870544020,20.0,137.48,137.34,0.17]
[1718870544021,25.39355824,137.48,137.34,0.17]
[1718870544185,20.0,137.48,137.34,0.17]
[1718870544387,20.0,137.48,137.36,0.17]
[1718870544584,20.0,137.48,137.37,6.4496]
[1718870544897,6.2298,137.49,137.38,20.0]
[1718870545412,6.2298,137.49,137.37,6.4496]
[1718870546007,0.34,137.48,137.37,6.4496]
[1718870546313,0.68,137.48,137.37,6.4496]
[1718870546809,20.68,137.48,137.37,6.4496]
[1718870547015,0.68,137.48,137.37,6.4496]
[1718870547214,65.68,137.48,137.37,6.4496]
[1718870547402,20.0,137.48,137.37,6.4496]
[1718870547719,11.6931462,137.56,137.38,35.7546]
[1718870548201,6.0538,137.56,137.39,0.17]
[1718870548394,6.0538,137.56,137.39,0.51]
[1718870548792,6.0538,137.56,137.39,0.17]
[1718870549299,0.17,137.53,137.38,35.7546]
[1718870549503,0.68,137.53,137.38,35.7546]
[1718870550308,20.68,137.53,137.38,35.7546]
[1718870550810,20.34,137.53,137.39,0.17]
[1718870551011,20.34,137.53,137.38,35.7546]
[1718870551322,20.34,137.53,137.39,0.17]
[1718870552225,0.17,137.51,137.39,0.17]
[1718870552928,20.0,137.55,137.42,15.4117]
[1718870553129,20.0,137.55,137.43,20.0]
[1718870554298,0.68,137.54,137.43,20.0]
[1718870555634,0.68,137.54,137.42,15.4117]
[1718870560928,0.68,137.54,137.43,26.4862]
[1718870561825,20.0,137.56,137.43,26.4862]
[1718870563107,0.51,137.55,137.43,26.4862]
[1718870563311,0.51,137.55,137.44,0.17]
[1718870564529,0.34,137.54,137.43,26.4862]
[1718870564822,0.51,137.53,137.43,26.4862]
[1718870565002,0.34,137.55,137.43,26.4862]
[1718870565003,0.51,137.52,137.43,26.4862]
[1718870565206,0.17,137.52,137.43,26.4862]
[1718870565402,0.17,137.52,137.43,27.93811907]
[1718870565602,0.17,137.52,137.43,26.4862]
[1718870566831,20.0,137.57,137.44,0.17]
[1718870567728,20.0,137.57,137.43,26.4862]
[1718870568238,0.17,137.56,137.43,26.4862]
[1718870568429,0.68,137.56,137.43,26.4862]
[1718870569732,0.51,137.56,137.44,16.5523]
[1718870570027,20.0,137.57,137.44,16.5523]
[1718870571016,0.17,137.56,137.44,16.5523]
[1718870571224,0.68,137.56,137.44,16.5523]
[1718870572713,6.4053,137.53,137.44,16.5523]
[1718870572915,0.17,137.51,137.44,16.5523]
[1718870574718,0.17,137.52,137.44,16.5523]
[1718870575219,0.17,137.51,137.44,16.5523]
[1718870576128,0.51,137.51,137.44,16.5523]
[1718870576436,0.17,137.5,137.44,16.5523]
[1718870576640,0.51,137.5,137.44,16.5523]
[1718870578040,20.0,137.55,137.44,16.5523]
[1718870579524,20.0,137.57,137.44,16.5523]
[1718870579847,20.0,137.57,137.36,41.9]
[1718870579848,20.0,137.57,137.47,15.0619]
[1718870580148,257.16752727,137.59,137.47,15.0619]
[1718870580446,6.81705473,137.59,137.47,15.0619]
[1718870580627,16.6573,137.62,137.5,6.0756]
[1718870580827,22.11666858,137.62,137.5,6.0756]
[1718870581345,20.0,137.61,137.5,6.0756]
[1718870583433,0.51,137.6,137.5,6.0756]
[1718870583634,0.34,137.59,137.5,6.0756]
[1718870583934,0.51,137.58,137.5,6.0756]
[1718870584129,20.0,137.61,137.51,15.5022]
[1718870584647,25.60272028,137.64,137.51,15.5022]
[1718870584828,20.0,137.64,137.51,15.5022]
[1718870585523,0.34,137.63,137.51,15.5022]
[1718870585729,0.34,137.62,137.51,15.5022]
[1718870585941,0.34,137.61,137.51,15.5022]
[1718870586136,20.0,137.64,137.52,6.6401]
[1718870586347,20.0,137.65,137.53,35.498]
[1718870586525,20.0,137.65,137.55,15.1244]
[1718870586838,20.0,137.68,137.55,15.1244]
[1718870587432,20.0,137.68,137.57,15.4337]
[1718870590533,0.51,137.67,137.57,15.4337]
[1718870590833,0.17,137.66,137.57,15.4337]
[1718870591142,0.17,137.65,137.57,15.4337]
[1718870591344,20.51,137.65,137.57,15.4337]
[1718870591549,25.01,137.63,137.48,22.577]
[1718870591734,20.34,137.62,137.48,22.577]
[1718870591942,0.17,137.6,137.48,22.577]
[1718870592148,0.34,137.6,137.48,22.577]
[1718870592455,0.17,137.59,137.48,22.577]
[1718870592664,0.34,137.59,137.49,15.6342]
[1718870592834,0.34,137.58,137.49,15.6342]
[1718870593155,0.34,137.57,137.49,15.6342]
[1718870593758,0.34,137.56,137.49,15.6342]
[1718870594051,0.34,137.55,137.49,15.6342]
[1718870594257,0.17,137.54,137.49,15.6342]
[1718870594460,0.34,137.55,137.49,15.6342]
[1718870594766,0.34,137.56,137.51,15.1752]
[1718870595936,0.17,137.61,137.51,15.1752]
[1718870596259,0.17,137.58,137.51,15.1752]
[1718870596562,0.34,137.58,137.51,15.1752]
[1718870596733,0.17,137.57,137.51,15.1752]
[1718870596930,0.34,137.57,137.51,15.1752]
[1718870597150,0.34,137.56,137.51,15.1752]
[1718870597461,0.34,137.55,137.47,16.5038]
[1718870597642,0.17,137.53,137.47,16.5038]
[1718870597837,0.34,137.53,137.47,16.5038]
[1718870598158,0.17,137.51,137.47,16.5038]
[1718870598459,0.34,137.51,137.47,16.5038]
[1718870598660,0.34,137.5,137.47,16.5038]
[1718870598963,0.17,137.49,137.47,16.5038]
[1718870599148,0.34,137.49,137.47,16.5038]
[1718870599452,0.51,137.48,137.42,6.666]
[1718870599643,0.34,137.47,137.43,15.5862]
[1718870599846,0.17,137.46,137.43,15.5862]
[1718870600154,0.34,137.46,137.43,15.5862]
[1718870600339,0.17,137.45,137.43,15.5862]
[1718870600535,0.34,137.45,137.43,15.5862]
[1718870600738,0.17,137.44,137.43,15.5862]
[1718870602548,0.34,137.44,137.43,15.5862]
[1718870602747,0.51,137.44,137.43,15.5862]
[1718870602947,0.68,137.44,137.43,15.5862]
[1718870603147,0.68,137.44,137.42,6.666]
[1718870603345,0.17,137.43,137.42,6.666]
[1718870603562,0.34,137.43,137.4,16.0776]
[1718870603871,0.17,137.42,137.4,16.0776]
[1718870604040,0.34,137.42,137.4,16.0776]
[1718870604366,0.17,137.41,137.4,16.0776]
[1718870605264,0.34,137.41,137.4,16.0776]
[1718870605450,0.51,137.41,137.4,16.0776]
[1718870607955,0.68,137.41,137.35,21.4204]
[1718870608167,0.17,137.4,137.35,21.4204]
[1718870608476,0.34,137.4,137.35,21.4204]
[1718870608678,0.17,137.39,137.35,21.4204]
[1718870610859,0.34,137.39,137.35,21.4204]
[1718870611066,0.17,137.38,137.35,21.4204]
[1718870611747,0.17,137.47,137.35,21.4204]
[1718870611952,0.68,137.47,137.35,21.4204]
[1718870617469,21.797,137.46,137.35,21.4204]
[1718870617681,20.68,137.45,137.35,15.3827]
[1718870617963,65.68,137.45,137.31,21.7802]
[1718870618577,20.68,137.45,137.31,21.7802]
[1718870619671,0.17,137.41,137.31,15.2643]
[1718870619989,20.68,137.41,137.31,15.2643]
[1718870622079,0.17,137.39,137.31,15.2643]
[1718870622286,0.68,137.39,137.31,15.2643]
[1718870622471,1.26880195,137.4,137.31,15.2643]
[1718870622677,20.0,137.41,137.31,15.2643]
[1718870623668,0.17,137.4,137.31,15.2643]
[1718870623888,0.51,137.4,137.31,15.2643]
[1718870624387,0.17,137.39,137.25,16.17]
[1718870624570,0.17,137.37,137.25,16.17]
[1718870624769,20.68,137.37,137.25,16.17]
[1718870626077,16.3608,137.36,137.25,16.17]
[1718870626281,0.68,137.35,137.25,16.17]
[1718870626472,20.68,137.35,137.25,16.17]
[1718870630386,20.68,137.35,137.26,20.0]
[1718870630578,20.68,137.35,137.25,16.17]
[1718870638271,20.68,137.35,137.23,6.0627]
[1718870638471,20.68,137.35,137.24,20.0]
[1718870639078,20.68,137.35,137.23,6.0627]
[1718870640401,0.17,137.33,137.22,16.1158]
[1718870640697,0.17,137.31,137.19,22.1488]
[1718870640899,20.34,137.31,137.2,20.0]
[1718870641100,0.17,137.29,137.2,20.0]
[1718870641312,0.17,137.27,137.2,20.0]
[1718870641476,0.51,137.27,137.2,20.0]
[1718870641787,0.17,137.26,137.2,20.0]
[1718870641992,0.51,137.26,137.2,20.0]
[1718870642206,0.17,137.3,137.2,20.0]
[1718870642378,0.68,137.3,137.2,20.0]
[1718870642812,6.4907,137.31,137.2,20.0]
[1718870643107,6.4907,137.31,137.21,0.17]
[1718870643806,6.4907,137.31,137.2,20.0]
[1718870644200,0.68,137.3,137.2,20.0]
[1718870645100,20.68,137.3,137.19,15.554]
[1718870645591,42.11,137.3,137.19,15.554]
[1718870647105,42.11,137.3,137.2,20.0]
[1718870647106,0.68,137.3,137.2,20.0]
[1718870647307,6.4907,137.31,137.2,20.0]
[1718870647689,6.4907,137.31,137.21,0.17]
[1718870648491,6.4907,137.31,137.2,20.0]
[1718870648808,0.68,137.3,137.2,20.0]
[1718870657403,0.68,137.3,137.19,15.554]
[1718870657404,15.5985,137.29,137.17,6.1743]
[1718870657613,0.68,137.3,137.09,11.25004719]
[1718870657614,6.135,137.24,137.09,25.835191]
[1718870657791,0.17,137.23,137.1,5.46498303]
[1718870657988,0.68,137.23,137.09,15.8552]
[1718870658613,0.68,137.23,137.11,15.5985]
[1718870658815,0.68,137.23,137.09,15.8552]
[1718870659197,0.68,137.23,137.1,15.5985]
[1718870659408,0.51,137.23,137.1,15.5985]
[1718870659712,0.51,137.23,137.1,40.6085]
[1718870659908,0.51,137.23,137.11,20.0]
[1718870660109,0.51,137.23,137.12,0.68]
[1718870660290,0.51,137.23,137.12,0.34]
[1718870662301,0.51,137.23,137.12,0.17]
[1718870663590,6.135,137.24,137.12,0.68]
[1718870664798,6.135,137.24,137.12,0.34]
[1718870665603,0.51,137.23,137.12,0.34]
[1718870666593,0.51,137.23,137.11,18.01]
[1718870667516,0.51,137.23,137.14,21.46]
[1718870668111,0.51,137.23,137.14,18.96]
[1718870668815,0.51,137.23,137.15,20.0]
[1718870669219,6.135,137.24,137.16,0.17]
[1718870670098,6.135,137.24,137.15,20.0]
[1718870670511,0.17,137.23,137.15,20.0]
[1718870670862,0.68,137.23,137.15,20.0]
[1718870671115,0.68,137.23,137.13,20.0]
[1718870673102,0.68,137.23,137.12,21.46]
[1718870673302,0.68,137.23,137.13,20.0]
[1718870674123,15.2418,137.22,137.13,20.0]
[1718870674304,0.51,137.21,137.13,20.0]
[1718870674630,0.17,137.2,137.13,20.0]
[1718870677539,0.51,137.21,137.13,20.0]
[1718870677737,0.17,137.19,137.13,20.0]
[1718870677922,0.68,137.19,137.1,41.46]
[1718870678116,15.2648,137.18,137.1,47.6335]
[1718870678317,0.68,137.17,137.1,47.6335]
[1718870678833,0.68,137.17,137.1,41.46]
[1718870679036,0.17,137.15,137.1,20.0]
[1718870679226,0.34,137.15,137.09,20.0]
[1718870679531,0.17,137.13,137.05,21.46]
[1718870680034,0.34,137.13,137.05,21.46]
[1718870680237,0.17,137.12,137.05,21.46]
[1718870680420,0.34,137.12,137.05,21.46]
[1718870681648,6.2673,137.14,137.05,21.46]
[1718870682123,6.2673,137.14,137.06,20.0]
[1718870683130,6.2673,137.14,137.08,21.46]
[1718870683319,6.2673,137.14,137.09,20.0]
[1718870685353,6.2673,137.14,137.07,20.0]
[1718870687242,0.34,137.13,137.07,20.0]
[1718870687445,0.17,137.12,137.05,20.0]
[1718870687632,0.34,137.12,137.05,20.0]
[1718870687831,0.17,137.09,137.05,20.0]
[1718870688035,0.68,137.09,137.04,6.2673]
[1718870688339,0.68,137.09,137.0,21.46]
[1718870688541,0.68,137.09,137.01,20.0]
[1718870692942,0.17,137.09,137.01,20.0]
[1718870693126,0.34,137.09,137.01,20.0]
[1718870693526,0.17,137.09,137.01,20.0]
[1718870693726,6.713,137.1,137.01,20.0]
[1718870693928,0.68,137.09,137.01,20.0]
[1718870695245,0.34,137.09,137.01,20.0]
[1718870695445,6.543,137.1,137.01,20.0]
[1718870695842,0.51,137.09,137.01,20.0]
[1718870696942,6.543,137.1,137.01,20.0]
[1718870697551,6.543,137.1,137.04,21.46]
[1718870697731,6.543,137.1,137.05,20.0]
[1718870697937,16.2584,137.11,137.05,20.0]
[1718870698955,16.2584,137.11,137.07,21.46]
[1718870699138,16.2584,137.11,137.08,20.0]
[1718870699550,16.2584,137.11,137.07,21.46]
[1718870699758,16.2584,137.11,137.04,21.46]
[1718870699958,16.2584,137.11,137.05,20.0]
[1718870701449,6.2138,137.14,137.07,21.46]
[1718870701652,6.2138,137.14,137.08,20.0]
[1718870702337,15.3656,137.15,137.08,20.0]
[1718870702543,15.3656,137.15,137.1,21.46]
[1718870702749,6.0658,137.17,137.11,20.0]
[1718870702956,6.0658,137.17,137.11,22.78612401]
[1718870703148,6.0658,137.17,137.11,20.0]
[1718870708362,15.1812,137.19,137.11,35.9927]
[1718870708559,15.1812,137.19,137.13,21.46]
[1718870708767,6.4166,137.22,137.16,21.46]
[1718870708945,15.4534,137.23,137.17,20.0]
[1718870710680,16.0454,137.32,137.19,21.46]
[1718870710847,16.0454,137.32,137.2,20.0]
[1718870712043,0.17,137.3,137.2,20.0]
[1718870712258,0.34,137.3,137.2,20.0]
[1718870712551,0.17,137.28,137.2,20.0]
[1718870712754,0.34,137.28,137.2,20.0]
[1718870712971,0.17,137.27,137.2,20.0]
[1718870713176,6.4176,137.25,137.2,20.0]
[1718870713379,6.4176,137.25,137.16,20.0]
[1718870714381,0.17,137.23,137.16,20.0]
[1718870714690,0.17,137.23,137.13,20.0]
[1718870714859,0.17,137.23,137.07,16.147391]
[1718870714860,0.17,137.21,137.09,20.0]
[1718870715058,0.51,137.21,137.08,20.0]
[1718870715353,0.17,137.2,137.08,20.0]
[1718870715555,0.17,137.2,137.07,6.1674]
[1718870715556,0.17,137.19,137.07,6.1674]
[1718870715763,0.51,137.19,137.07,6.1674]
[1718870715961,0.17,137.18,137.07,6.1674]
[1718870716173,0.17,137.17,137.05,16.4514]
[1718870716372,0.51,137.17,137.05,22.00845346]
[1718870716673,0.17,137.16,137.05,16.4514]
[1718870716977,0.51,137.16,137.06,20.0]
[1718870717153,0.17,137.15,137.06,20.0]
[1718870717360,0.34,137.15,137.06,20.0]
[1718870718398,0.17,137.14,137.06,20.0]
[1718870718680,0.34,137.15,137.06,20.0]
[1718870718971,0.17,137.21,137.07,0.17]
[1718870719177,0.68,137.21,137.07,0.17]
[1718870719367,0.68,137.21,137.06,20.0]
[1718870719568,0.68,137.21,137.07,0.17]
[1718870720477,6.5632,137.2,137.06,20.0]
[1718870720781,0.68,137.19,137.06,20.0]
[1718870721076,16.4129,137.18,137.06,20.0]
[1718870721277,0.68,137.17,137.06,20.0]
[1718870721457,6.4211,137.16,137.06,20.0]
[1718870721661,6.4211,137.16,137.04,20.0]
[1718870721662,0.68,137.15,137.04,20.0]
[1718870723367,0.68,137.15,137.02,20.0]
[1718870723759,0.68,137.15,137.02,22.39167933]
[1718870724175,6.4211,137.16,137.03,2.3915048]
[1718870724364,6.4211,137.16,137.04,25.57]
[1718870724565,6.4211,137.16,137.05,20.17]